lending/lending_fUSD_20240202
["ID","MTS","AMOUNT","RATE_DAILY","PERIOD"]
[313169889,1706867446894,-859.0,0.00023,2]
[313169890,1706867446904,-150.0,0.00023,2]
[313169891,1706867446913,-320.0,0.00023,2]
[313169892,1706867446923,-342.0,0.00023,2]
[313169893,1706867446933,-150.0,0.00023,2]
[313169894,1706867446943,-1034.0,0.00023,2]
[313169895,1706867446952,-260715.23304775,0.00023,2]
[313169896,1706867446963,-14335.14185208,0.00023,2]
[313169897,1706867446974,-2996.88810424,0.00023,2]
[313169898,1706867446985,-476.91,0.00023,2]
[313169899,1706867446998,-2930.07541432,0.00023,2]
[313169900,1706867447009,-319.31715993,0.00023,2]
[313169901,1706867447021,-58781.15115486,0.00023,2]
[313169938,1706867474116,150.0,0.00022496,2]
[313169939,1706867474413,1828.97931683,0.00022308,2]
[313169940,1706867477023,417.3967963,0.00020467,2]
[313169941,1706867477525,305.56048196,0.00021847,2]
[313169942,1706867479201,3133.39834862,0.00021847,2]
[313169943,1706867482190,624.61821592,0.00022077,2]
[313169944,1706867493389,3197.13386433,0.00022077,2]
[313169945,1706867510308,1465.75,0.00022314,2]
[313169946,1706867520010,198.06,0.00022314,2]
[313169947,1706867521628,180.54,0.00022264,2]
[313169948,1706867533910,200.0,0.00022185,2]
[313169949,1706867556699,159.93,0.00022185,2]
[313169950,1706867572435,166.94,0.00022185,2]
[313169951,1706867587070,250.0,0.00022185,2]
[313169952,1706867590586,23900.0,0.00022185,2]
[313169953,1706867611455,277.8,0.00022389,2]
[313169954,1706867611658,277.8,0.0002245,2]
[313169955,1706867616048,618.19,0.00022219,2]
[313169958,1706867650747,459.25724567,0.00012,30]
[313169959,1706867653998,116704.0,0.00022317,2]
[313169960,1706867659401,200.0,0.00021925,2]
[313169961,1706867670950,15225.19,0.00021925,2]
[313169962,1706867689172,4296.96,0.00021925,2]
[313169963,1706867696630,1137.87,0.000221,2]
[313169964,1706867715354,303.92,0.00021925,2]
[313169966,1706867744831,157.32,0.00022474,2]
[313169967,1706867746984,173.89,0.00017583,2]
[313169968,1706867771727,666.95,0.0002189,2]
[313169969,1706867792213,674.82,0.00021881,2]
[313169971,1706867798165,150.0,0.00021881,2]
[313169972,1706867823775,209.0,0.0002175,2]
[313169973,1706867827179,200.0,0.00021842,2]
[313169974,1706867827596,500.0,0.00021842,2]
[313169975,1706867851842,2705.0,0.00021842,2]
[313169976,1706867854465,1351.57,0.00021842,2]
[313169977,1706867883124,250.0,0.00021918,2]
[313169978,1706867896659,200.0,0.00021841,2]
[313169979,1706867904670,759.83,0.00019925,2]
[313169980,1706867904986,759.83,0.00022189,2]
[313169981,1706867918224,2000.0,0.00021843,2]
[313169982,1706867948467,1931.49,0.00021843,2]
[313169983,1706867956021,180.54,0.00021843,2]
[313169984,1706867956197,717.49,0.00021843,2]
[313169985,1706867959707,176.85,0.00022,2]
[313169986,1706867976265,250.0,0.00022,2]
[313169987,1706867977527,250.0,0.00022274,2]
[313169988,1706867994382,500.0,0.00022,2]
[313169989,1706868021429,161.61,0.00021844,2]
[313169990,1706868050354,250.02,0.00022087,2]
[313169991,1706868050681,250.02,0.00022147,2]
[313169992,1706868050856,250.02,0.00022208,2]
[313169993,1706868051053,250.02,0.00022269,2]
[313169994,1706868051247,250.02,0.00022329,2]
[313169995,1706868051441,250.02,0.0002239,2]
[313169996,1706868051654,250.02,0.0002245,2]
[313169997,1706868148152,150.0,0.00022,2]
[313169998,1706868150895,3580.8,0.00021841,2]
[313169999,1706868151874,150.0,0.00022,2]
[313170000,1706868211152,460.14,0.00021837,2]
[313170001,1706868220284,150.0,0.00022,2]
[313170002,1706868290288,308.96,0.00021987,2]
[313170003,1706868319887,683.84,0.00019894,2]
[313170004,1706868320212,683.84,0.00022158,2]
[313170005,1706868368908,965.74,0.00021814,2]
[313170006,1706868378646,184.39,0.00021814,2]
[313170007,1706868406234,200.0,0.00021814,2]
[313170037,1706868560582,162.51,0.00021985,2]
[313170038,1706868560801,162.51,0.00022045,2]
[313170039,1706868561005,162.51,0.00022106,2]
[313170040,1706868561217,162.51,0.00022166,2]
[313170041,1706868561640,162.51,0.00022226,2]
[313170042,1706868561859,162.51,0.00022287,2]
[313170043,1706868562100,162.51,0.00022347,2]
[313170044,1706868562291,162.51,0.00022407,2]
[313170045,1706868562499,162.51,0.00022467,2]
[313170046,1706868594212,161.08,0.00021815,2]
[313170047,1706868596638,2984.0,0.00021809,2]
[313170048,1706868597792,176.85,0.00022,2]
[313170049,1706868630634,631.88,0.00021822,2]
[313170057,1706868632098,-488.7248991,0.00022507,2]
[313170058,1706868632107,-150.0,0.00022507,2]
[313170059,1706868632116,-664.98548059,0.00022508,2]
[313170060,1706868632128,-1572.09871997,0.00022508,2]
[313170061,1706868632139,-815.74022496,0.00022508,2]
[313170062,1706868632321,-13763.67081986,0.00022508,2]
[313170063,1706868632330,-690.76282148,0.00022509,2]
[313170064,1706868632339,-162.51,0.00022528,2]
[313170065,1706868632348,-485.65206005,0.00022548,2]
[313170066,1706868632357,-150.9549228,0.00022548,2]
[313170067,1706868632366,-150.0,0.00022548,2]
[313170068,1706868632375,-176.85,0.00022548,2]
[313170069,1706868632385,-162.51,0.00022588,2]
[313170070,1706868632395,-162.51,0.00022648,2]
[313170071,1706868632405,-58.59771772,0.00022698,2]
[313170072,1706868632416,-369.78228228,0.00022698,2]
[313170073,1706868632426,-3066.9286753,0.000227,2]
[313170074,1706868632438,-572.01503807,0.000227,2]
[313170075,1706868632451,-667.8614337,0.000227,2]
[313170092,1706868639634,-479.05340948,0.00022506,2]
[313170094,1706868639643,-317.6983739,0.000227,2]
[313170100,1706868639691,-223.81172212,0.000227,2]
[313170101,1706868639701,-162.51,0.00022709,2]
[313170102,1706868639710,-150.0,0.0002273,2]
[313170103,1706868639720,-150.0,0.00022732,2]
[313170104,1706868639729,-150.0,0.00022734,2]
[313170105,1706868639738,-32.83698288,0.00022737,2]
[313170106,1706868639750,-117.16301712,0.00022737,2]
[313170107,1706868639759,-150.0,0.00022766,2]
[313170108,1706868639769,-162.51,0.00022769,2]
[313170109,1706868639778,-302.63597908,0.00022774,2]
[313170110,1706868639793,-153.64125112,0.0002278,2]
[313170111,1706868639804,-158.66623768,0.00022797,2]
[313170112,1706868639816,-89.5657803,0.00022797,2]
[313170113,1706868639827,-248.23201793,0.00022812,2]
[313170114,1706868639837,-1163.835,0.00022812,2]
[313170115,1706868639846,-150.0,0.00022825,2]
[313170116,1706868639856,-248.23201793,0.00022826,2]
[313170117,1706868639865,-151.40277149,0.00022827,2]
[313170118,1706868639875,-162.51,0.00022829,2]
[313170119,1706868639885,-110.46169042,0.00022841,3]
[313170120,1706868639915,-285.23719241,0.00022841,3]
[313170123,1706868640289,-141.86501864,0.00022841,3]
[313170124,1706868640299,-194.65996241,0.00022841,2]
[313170125,1706868640308,-248.23201793,0.00022841,2]
[313170126,1706868640317,-178.05123539,0.00022845,2]
[313170127,1706868640326,-248.23201793,0.00022856,2]
[313170128,1706868640335,-150.0,0.00022863,2]
[313170129,1706868640344,-162.26106829,0.00022867,2]
[313170130,1706868640353,-248.23201793,0.00022871,2]
[313170131,1706868640362,-280.545,0.00022884,2]
[313170132,1706868640372,-1028.812,0.00022884,2]
[313170133,1706868640381,-236.0,0.00022884,2]
[313170134,1706868640390,-1941.0,0.00022884,2]
[313170135,1706868640399,-428.003,0.00022884,2]
[313170136,1706868640408,-1138.0,0.00022884,2]
[313170137,1706868640417,-150.0,0.00022884,2]
[313170138,1706868640426,-859.0,0.00022884,2]
[313170139,1706868640435,-248.23201793,0.00022885,2]
[313170140,1706868640445,-162.51,0.0002289,2]
[313170141,1706868640454,-500.0,0.00022895,2]
[313170142,1706868640463,-408.41431133,0.00022895,2]
[313170143,1706868640473,-510.13598131,0.00022896,2]
[313170144,1706868640482,-5094.05466202,0.00022896,2]
[313170145,1706868640492,-354932.0932,0.00022897,2]
[313170146,1706868640501,-158.2962,0.00022897,2]
[313170147,1706868640510,-580.9422,0.00022897,2]
[313170149,1706868640527,-251.77753448,0.000229,2]
[313170150,1706868640540,-9673.18076526,0.000229,2]
[313170152,1706868640549,-162.26106829,0.000229,2]
[313170153,1706868640558,-150.0,0.000229,2]
[313170154,1706868640569,-153.55670088,0.000229,2]
[313170155,1706868640580,-248.23201793,0.000229,2]
[313170156,1706868640589,-222659.92288851,0.000229,2]
[313170157,1706868640857,-65631.45711149,0.000229,2]
[313170158,1706868640867,-4700.75499184,0.000229,2]
[313170159,1706868640877,-1807.55473342,0.000229,2]
[313170160,1706868640887,-2058.88037424,0.000229,2]
[313170161,1706868640897,-150.0,0.00022904,2]
[313170162,1706868640906,-184.39,0.00022905,2]
[313170163,1706868640915,-150.0,0.00022926,2]
[313170164,1706868640926,-717.49,0.00022935,2]
[313170165,1706868640936,-320.0,0.00022945,2]
[313170166,1706868640947,-342.0,0.00022945,2]
[313170167,1706868640956,-3160.809,0.00022947,2]
[313170168,1706868640966,-2278.0,0.00022947,2]
[313170169,1706868640975,-2912.0,0.00022947,2]
[313170170,1706868640985,-4193.0,0.00022947,2]
[313170171,1706868640994,-19779.0,0.00022947,2]
[313170172,1706868641004,-1034.0,0.00022947,2]
[313170173,1706868641015,-150.0,0.00022947,2]
[313170174,1706868641025,-162.51,0.0002295,2]
[313170175,1706868641035,-150.0,0.00022957,2]
[313170176,1706868641045,-800.0,0.00022959,2]
[313170177,1706868641054,-150.0,0.00022972,2]
[313170178,1706868641063,-215.43834682,0.00022974,2]
[313170179,1706868641073,-165.90347004,0.00022995,2]
[313170180,1706868641083,-496.54091316,0.00022995,2]
[313170181,1706868641093,-215.68669268,0.00022995,2]
[313170182,1706868641102,-156.6721498,0.00022995,2]
[313170183,1706868641112,-648.78075512,0.00022995,2]
[313170184,1706868641121,-264.01241493,0.00022995,2]
[313170185,1706868641131,-704.78719014,0.00022995,2]
[313170186,1706868641141,-476.88688694,0.00022995,2]
[313170187,1706868641150,-276.99954016,0.00022995,2]
[313170188,1706868641159,-3151.54630641,0.00022995,2]
[313170189,1706868641169,-199.69563475,0.00022996,2]
[313170190,1706868641179,-155.43206583,0.00022996,2]
[313170191,1706868641189,-197.40756613,0.00022996,2]
[313170192,1706868641199,-867.41087233,0.00022996,2]
[313170193,1706868641208,-150.0,0.00022996,2]
[313170194,1706868641218,-13022.60323265,0.00022997,2]
[313170195,1706868641227,-355.706738,0.00022997,2]
[313170196,1706868641236,-212.64591614,0.00022997,2]
[313170197,1706868641246,-349.06708826,0.00022997,2]
[313170198,1706868641255,-497.3082028,0.00022997,2]
[313170199,1706868641264,-1125.06165606,0.00022997,2]
[313170200,1706868641275,-157.04728409,0.00022997,2]
[313170201,1706868641284,-3338.37650623,0.00022997,2]
[313170202,1706868641294,-5228.78655032,0.00022997,2]
[313170203,1706868641306,-292.42529483,0.00022997,2]
[313170204,1706868641315,-2618.80757545,0.00022997,2]
[313170205,1706868641323,-162.20319528,0.00022997,2]
[313170206,1706868641334,-254.82064366,0.00022997,2]
[313170207,1706868641343,-3759.01502906,0.00022997,2]
[313170208,1706868641354,-2319.02287815,0.00022997,2]
[313170209,1706868641363,-169.55306514,0.00022997,2]
[313170210,1706868641372,-321.28838879,0.00022997,2]
[313170211,1706868641381,-372.20096777,0.00022997,2]
[313170212,1706868641390,-345.68529376,0.00022997,2]
[313170213,1706868641400,-1200.96579046,0.00022997,2]
[313170214,1706868641410,-10554.64842791,0.00022997,2]
[313170215,1706868641420,-18654.44114775,0.00022997,2]
[313170216,1706868641429,-2144.10452078,0.00022997,2]
[313170217,1706868641439,-157.31191627,0.00022997,2]
[313170218,1706868641450,-247.34763938,0.00022997,2]
[313170219,1706868641461,-155.0,0.00022997,2]
[313170220,1706868641470,-204.53410873,0.00022997,2]
[313170221,1706868641479,-310.84360459,0.00022997,2]
[313170222,1706868641490,-943.53094508,0.00022997,2]
[313170223,1706868641500,-598.64663937,0.00022997,2]
[313170224,1706868641510,-2327.6667133,0.00022997,2]
[313170225,1706868641519,-155.88650894,0.00022997,2]
[313170226,1706868641528,-200.50299668,0.00022997,2]
[313170227,1706868641537,-155.56583844,0.00022997,2]
[313170228,1706868641547,-155.55899829,0.00022997,2]
[313170229,1706868641556,-155.41952087,0.00022997,2]
[313170230,1706868641567,-273.56273343,0.00022997,2]
[313170231,1706868641579,-340.45017893,0.00022997,2]
[313170232,1706868641588,-699.81053348,0.00022997,2]
[313170233,1706868641599,-270.6074957,0.00022997,2]
[313170234,1706868641610,-544.11741687,0.00022997,2]
[313170235,1706868641619,-235.65957255,0.00022997,2]
[313170236,1706868641630,-157.39558855,0.00022997,2]
[313170237,1706868641638,-162.13905461,0.00022997,2]
[313170238,1706868641649,-176.46382615,0.00022997,2]
[313170239,1706868641658,-5038.93139283,0.00022997,2]
[313170240,1706868641667,-1856.49462103,0.00022997,2]
[313170241,1706868641676,-155.0,0.00022997,2]
[313170242,1706868641685,-475.5963884,0.00022997,2]
[313170243,1706868641694,-199.45808764,0.00022997,2]
[313170244,1706868641704,-4646.38858611,0.00022997,2]
[313170245,1706868641858,-766.58965683,0.00022997,2]
[313170246,1706868641868,-1073.11886561,0.00022997,2]
[313170247,1706868641877,-155.19160529,0.00022997,2]
[313170248,1706868641886,-251.57324471,0.00022997,2]
[313170249,1706868641895,-219.07628679,0.00022997,2]
[313170250,1706868641905,-285.21668893,0.00022997,2]
[313170251,1706868641914,-630.29094218,0.00022997,2]
[313170252,1706868641923,-206.20690972,0.00022997,2]
[313170253,1706868641932,-314.9861483,0.00022997,2]
[313170254,1706868641942,-155.0,0.00022997,2]
[313170255,1706868641950,-344.00913488,0.00022997,2]
[313170256,1706868641961,-1139.78306733,0.00022997,2]
[313170257,1706868641971,-1504.43891721,0.00022998,2]
[313170258,1706868641986,-4376.57337235,0.00022998,2]
[313170259,1706868641996,-4278.90474441,0.00022998,2]
[313170260,1706868642010,-155.0,0.00022999,2]
[313170261,1706868642020,-967.14955208,0.00022999,2]
[313170262,1706868642030,-68500.82980443,0.00022999,2]
[313170263,1706868642040,-163.23210883,0.00022999,2]
[313170264,1706868642051,-110661.04048256,0.00022999,2]
[313170265,1706868642060,-248.99153832,0.00022999,2]
[313170266,1706868642069,-550.99598944,0.00022999,2]
[313170267,1706868642078,-250.38461388,0.00023,3]
[313170268,1706868642088,-915.439,0.00023,2]
[313170269,1706868642097,-2867.0,0.00023,2]
[313170270,1706868642107,-1858.0,0.00023,2]
[313170271,1706868642116,-839.0,0.00023,2]
[313170272,1706868642125,-950.0,0.00023,2]
[313170273,1706868642134,-722.36,0.00023,2]
[313170274,1706868642143,-662908.33038387,0.00023,2]
[313170275,1706868642178,-130218.95098787,0.00023,2]
[313170276,1706868642194,-43953.31517649,0.00023,2]
[313170297,1706868644375,-252.53,0.00023,2]
[313170298,1706868644492,-532.1864851,0.00023,2]
[313170300,1706868646231,-1047.18407149,0.0002254,2]
[313170301,1706868646241,-538.18588398,0.00022996,2]
[313170302,1706868646250,-108.4122536,0.00022999,2]
[313170303,1706868646412,-350.75107093,0.00022999,2]
[313170304,1706868646421,-6994.2909659,0.00023,2]
[313170305,1706868646473,-306.21779093,0.00023,2]
[313170452,1706868655423,763.01283785,0.00021848,2]
[313170453,1706868661230,562.1073315,0.00020468,2]
[313170454,1706868667456,500.0,0.00021815,2]
[313170455,1706868672358,631.89537959,0.00022078,2]
[313170456,1706868717495,3198.37181468,0.00022077,2]
[313170460,1706868730929,250.0,0.00021918,2]
[313170461,1706868737750,2705.0,0.0002197,2]
[313170462,1706868759248,886.86,0.00019897,2]
[313170463,1706868759554,886.86,0.00022161,2]
[313170464,1706868773088,2000.0,0.00021815,2]
[313170465,1706868773597,500.0,0.00021864,2]
[313170466,1706868777873,499.84,0.00021815,2]
[313170467,1706868788583,200.0,0.00021858,2]
[313170468,1706868791850,200.0,0.00021852,2]
[313170470,1706868810842,2963.24,0.00021853,2]
[313170471,1706868827048,768.64,0.00021854,2]
[313170472,1706868857424,632.33,0.00021852,2]
[313170473,1706868870989,201.41121787,0.00021918,2]
[313170474,1706868894148,200.0,0.0002186,2]
[313170475,1706868914661,5455.58,0.00021855,2]
[313170476,1706868943594,182.69,0.00021859,2]
[313170477,1706868947593,160.87,0.00021854,2]
[313170478,1706868947797,2393.52,0.00021859,2]
[313170479,1706868968913,23900.0,0.00021855,2]
[313170480,1706869005904,159.38,0.00022019,2]
[313170481,1706869006102,159.38,0.00022123,2]
[313170482,1706869006299,159.38,0.00022228,2]
[313170483,1706869006518,159.38,0.00022332,2]
[313170484,1706869006731,159.38,0.00022436,2]
[313170485,1706869011474,174.78,0.00021854,2]
[313170486,1706869026852,159.93,0.00021842,2]
[313170487,1706869029236,1852.42,0.00021842,2]
[313170488,1706869036831,4334.99,0.00021842,2]
[313170489,1706869080442,171.53,0.00018044,2]
[313170490,1706869080883,163.05,0.00021846,2]
[313170491,1706869083100,177.23,0.00022391,2]
[313170492,1706869090417,419.25,0.0002184,2]
[313170493,1706869107185,494.49,0.0002184,2]
[313170494,1706869113017,250.0,0.0002184,2]
[313170495,1706869145591,177.22459551,0.00022438,2]
[313170496,1706869177948,150.0,0.0002184,2]
[313170498,1706869209019,250.0,0.00022,2]
[313170499,1706869210256,250.0,0.00022274,2]
[313170500,1706869222843,812.48,0.00019922,2]
[313170501,1706869223147,812.48,0.00022186,2]
[313170502,1706869237746,176.85,0.00022,2]
[313170503,1706869268270,500.0,0.00022,2]
[313170504,1706869270403,1481.62,0.00021842,2]
[313170505,1706869277024,1208.64,0.00022013,2]
[313170506,1706869284918,184.39,0.00021842,2]
[313170507,1706869370086,210.0,0.000225,2]
[313170508,1706869372007,182.69,0.00021842,2]
[313170509,1706869425987,554.28,0.00022007,2]
[313170510,1706869426164,150.0,0.00022,2]
[313170511,1706869428068,159.38,0.00022005,2]
[313170512,1706869428489,159.38,0.00022196,2]
[313170513,1706869428714,159.38,0.00022388,2]
[313170514,1706869447823,311.35,0.00021842,2]
[313170515,1706869463188,161.61,0.00021842,2]
[313170516,1706869481549,222.39778809,0.000225,2]
[313170517,1706869489964,2859.69,0.00021842,2]
[313170518,1706869524986,200.0,0.000225,2]
[313170519,1706869526270,3757.49,0.00021846,2]
[313170522,1706869658300,731.23,0.00019922,2]
[313170523,1706869658625,731.23,0.00022186,2]
[313170524,1706869675680,604.4,0.00021846,2]
[313170525,1706869713826,740.81,0.00021848,2]
[313170526,1706869788370,159.44358331,0.00022414,2]
[313170527,1706869793338,159.44358331,0.0002244,2]
[313170528,1706869798380,159.44358331,0.00022465,2]
[313170529,1706869803349,159.44358331,0.00022491,2]
[313170537,1706869832262,-155.0,0.00022508,2]
[313170538,1706869832272,-526.86546521,0.00022509,2]
[313170539,1706869832281,-81.14737264,0.0002251,2]
[313170541,1706869832317,-550.0,0.0002251,2]
[313170542,1706869832373,-401.82437314,0.0002251,2]
[313170562,1706869840172,-1572.02845357,0.0002251,2]
[313170563,1706869840181,-525.67645207,0.0002251,2]
[313170564,1706869840191,-4165.69478956,0.0002251,2]
[313170565,1706869840200,-479.05340948,0.00022511,2]
[313170566,1706869840209,-116.78005947,0.00022512,2]
[313170567,1706869840220,-33.21994053,0.00022512,2]
[313170568,1706869840230,-159.44358331,0.00022516,2]
[313170569,1706869840239,-327.33647616,0.00022524,2]
[313170570,1706869840251,-363.96539368,0.00022524,2]
[313170571,1706869840260,-159.44358331,0.00022542,2]
[313170572,1706869840270,-80.19146748,0.00022548,2]
[313170573,1706869840282,-169.80853252,0.00022548,2]
[313170574,1706869840291,-176.85,0.00022548,2]
[313170575,1706869840301,-53.74384505,0.00022548,2]
[313170576,1706869840312,-446.25615495,0.00022548,2]
[313170577,1706869840321,-90.41042891,0.00022548,2]
[313170578,1706869840333,-67.50786096,0.00022548,2]
[313170579,1706869840342,-159.44358331,0.00022567,2]
[313170580,1706869840351,-159.38,0.00022579,2]
[313170581,1706869840360,-159.44358331,0.00022593,2]
[313170582,1706869840370,-82.72497242,0.000226,2]
[313170583,1706869840384,-374.16160013,0.000226,2]
[313170584,1706869840396,-544.38170658,0.000226,2]
[313170585,1706869840408,-538.81687407,0.000226,2]
[313170586,1706869840417,-149.68312593,0.00022608,2]
[313170587,1706869840429,-850.31687407,0.00022608,2]
[313170588,1706869840438,-4803.60938219,0.00022608,2]
[313170589,1706869840450,-11000.0,0.00022608,2]
[313170590,1706869840462,-4500.0,0.00022608,2]
[313170591,1706869840478,-7433.4527225,0.00022608,2]
[313170592,1706869840487,-2710.83,0.00022608,2]
[313170593,1706869840496,-817.07,0.00022609,2]
[313170594,1706869840506,-1028.5,0.00022609,2]
[313170595,1706869840515,-150.99,0.00022609,2]
[313170597,1706869840525,-712.91,0.00022609,2]
[313170599,1706869840534,-709.63,0.00022609,2]
[313170601,1706869840543,-731.12,0.00022609,2]
[313170603,1706869840552,-159.44358331,0.00022619,2]
[313170605,1706869840562,-999.99,0.0002268,2]
[313170607,1706869840571,-9999.99,0.00022705,2]
[313170609,1706869840580,-730.8,0.0002274,2]
[313170611,1706869840590,-267.9345575,0.00022768,2]
[313170613,1706869840601,-232.31841027,0.00022768,2]
[313170614,1706869840611,-162.91158583,0.00022768,2]
[313170615,1706869840622,-86.70474913,0.00022768,2]
[313170616,1706869840631,-284.20923489,0.00022768,2]
[313170617,1706869840641,-159.38,0.0002277,2]
[313170618,1706869840650,-3027.72963259,0.0002277,2]
[313170619,1706869840666,-11526.27036741,0.0002277,2]
[313170620,1706869840676,-776.223,0.00022778,2]
[313170622,1706869840685,-1000.0,0.00022797,2]
[313170624,1706869840694,-2117.4074,0.00022797,2]
[313170626,1706869840703,-500.0,0.00022797,2]
[313170627,1706869840712,-8918.4503,0.000228,2]
[313170628,1706869840725,-1000.0,0.00022803,2]
[313170629,1706869840734,-250.0,0.00022822,2]
[313170630,1706869840743,-691.26773712,0.00022897,3]
[313170631,1706869840752,-1674.3433,0.00022897,2]
[313170632,1706869840761,-15029.9645,0.00022898,2]
[313170633,1706869840771,-182.5353,0.00022899,2]
[313170634,1706869840781,-1000.0,0.00022899,2]
[313170639,1706869840959,-407.5349,0.00022899,2]
[313170640,1706869840977,-15121.42890829,0.000229,2]
[313170641,1706869840990,-13726.92838059,0.000229,2]
[313170642,1706869841005,-11963.71561112,0.000229,2]
[313170643,1706869841015,-168.89956876,0.000229,2]
[313170644,1706869841025,-153.47438062,0.000229,2]
[313170645,1706869841038,-206.30294577,0.000229,2]
[313170646,1706869841047,-552.87555978,0.000229,2]
[313170647,1706869841057,-7195.27991956,0.000229,2]
[313170648,1706869841067,-211.24663682,0.000229,2]
[313170649,1706869841078,-768.64,0.00022947,2]
[313170650,1706869841090,-4193.0,0.00022949,2]
[313170651,1706869841099,-327.15920675,0.00022949,2]
[313170652,1706869841115,-360.17460302,0.00022949,2]
[313170653,1706869841152,-653.4606487,0.00022949,2]
[313170654,1706869841165,-190.88354153,0.00022949,2]
[313170655,1706869841174,-407.12811315,0.00022949,2]
[313170656,1706869841185,-1636.38332143,0.00022949,2]
[313170657,1706869841197,-906.25999723,0.00022949,2]
[313170658,1706869841209,-13394.9158866,0.00022949,2]
[313170659,1706869841220,-3370.31268159,0.00022949,2]
[313170660,1706869841230,-2867.0,0.00022949,2]
[313170661,1706869841239,-950.0,0.00022949,2]
[313170662,1706869841249,-839.0,0.00022949,2]
[313170663,1706869841258,-1034.0,0.00022949,2]
[313170664,1706869841267,-159.38,0.00022961,2]
[313170665,1706869841276,-216.1211168,0.00022974,2]
[313170666,1706869841287,-548.04375395,0.00022987,2]
[313170667,1706869841296,-210.38738253,0.0002299,2]
[313170668,1706869841305,-282.15685369,0.00022997,2]
[313170669,1706869841314,-155.49729668,0.00022997,2]
[313170670,1706869841324,-1223.70992313,0.00022997,2]
[313170671,1706869841333,-237.61237016,0.00022997,2]
[313170672,1706869841342,-500.0,0.00022997,2]
[313170673,1706869841351,-159.23228713,0.00022997,2]
[313170674,1706869841360,-289.74601572,0.00022997,2]
[313170675,1706869841370,-158.19984206,0.00022997,2]
[313170676,1706869841380,-212.25793733,0.00022997,2]
[313170677,1706869841390,-249.46647659,0.00022997,2]
[313170678,1706869841399,-1404.85920199,0.00022997,2]
[313170679,1706869841408,-158.61745822,0.00022997,2]
[313170680,1706869841418,-525.17910571,0.00022997,2]
[313170681,1706869841428,-177.10471114,0.00022997,2]
[313170682,1706869841437,-155.0,0.00022997,2]
[313170683,1706869841447,-156.0417175,0.00022997,2]
[313170684,1706869841455,-155.0,0.00022997,2]
[313170685,1706869841465,-172.36279521,0.00022997,2]
[313170686,1706869841474,-872.64300648,0.00022997,2]
[313170687,1706869841484,-2952.63589049,0.00022997,2]
[313170688,1706869841497,-551.45936331,0.00022997,2]
[313170689,1706869841509,-1204.76516499,0.00022997,2]
[313170690,1706869841519,-525.21369596,0.00022997,2]
[313170691,1706869841528,-362.66839239,0.00022997,2]
[313170692,1706869841538,-1395.4517365,0.00022997,2]
[313170693,1706869841549,-1104.43424814,0.00022997,2]
[313170694,1706869841561,-272.44258227,0.00022997,2]
[313170695,1706869841573,-1034.355,0.00022997,2]
[313170696,1706869841584,-401.67378473,0.00022997,2]
[313170697,1706869841596,-514.06877968,0.00022997,2]
[313170698,1706869841613,-712.70386514,0.00022997,2]
[313170699,1706869841751,-21.99795664,0.00022997,2]
[313170700,1706869841762,-197.29019107,0.00022997,2]
[313170701,1706869841773,-2796.99306282,0.00022997,2]
[313170702,1706869841783,-630.55738904,0.00022997,2]
[313170703,1706869841791,-2672.38661975,0.00022997,2]
[313170704,1706869841803,-291.86276036,0.00022997,2]
[313170705,1706869841813,-236.67130986,0.00022997,2]
[313170706,1706869841823,-312.20514002,0.00022997,2]
[313170707,1706869841834,-228.92260854,0.00022998,2]